fUST/lending_fUST_20240119
["ID","MTS","AMOUNT","RATE_DAILY","PERIOD"]
[312103558,1705626642124,-500.0,0.00034659,3]
[312103559,1705626642133,-571.23,0.00034659,3]
[312103560,1705626642142,-428.49523514,0.00034659,3]
[312103561,1705626642151,-500.0,0.00034659,3]
[312103562,1705626642160,-500.0,0.00034659,3]
[312103563,1705626642169,-500.0,0.00034659,3]
[312103564,1705626642178,-523.64838883,0.00034659,3]
[312103565,1705626642187,-500.0,0.00034659,3]
[312103566,1705626642196,-1688.92,0.00034659,3]
[312103567,1705626642206,-506.15991072,0.00034659,3]
[312103568,1705626642215,-500.0,0.00034659,3]
[312103569,1705626642224,-1530.76,0.00034659,3]
[312103570,1705626642233,-500.0,0.00034659,3]
[312103571,1705626642242,-500.0,0.00034659,3]
[312103572,1705626642251,-500.0,0.00034659,3]
[312103573,1705626642259,-150.0,0.00034659,3]
[312103574,1705626642268,-487.84353377,0.00034659,3]
[312103575,1705626642277,-500.0,0.00034659,3]
[312103576,1705626642287,-500.0,0.00034659,3]
[312103577,1705626642296,-500.0,0.00034659,3]
[312103578,1705626642305,-500.0,0.00034659,3]
[312103579,1705626642313,-500.0,0.00034659,7]
[312103581,1705626642322,-1195.47,0.0003466,3]
[312103582,1705626642331,-1388.6,0.0003466,3]
[312103584,1705626642346,-500.0,0.0003466,3]
[312103587,1705626642356,-500.0,0.0003466,3]
[312103590,1705626642365,-724.06,0.0003466,3]
[312103592,1705626642374,-1613.87,0.0003466,3]
[312103595,1705626642383,-3166.15,0.0003466,3]
[312103598,1705626642392,-151.0,0.0003466,2]
[312103601,1705626642401,-596.55,0.0003466,3]
[312103605,1705626642411,-503.62839991,0.00034661,3]
[312103607,1705626642419,-500.0,0.00034661,3]
[312103610,1705626642428,-1125.7,0.00034661,3]
[312103613,1705626642437,-500.0,0.00034661,3]
[312103616,1705626642446,-500.0,0.00034661,3]
[312103618,1705626642455,-500.0,0.00034661,3]
[312103619,1705626642464,-500.0,0.00034661,3]
[312103620,1705626642472,-500.0,0.00034661,3]
[312103622,1705626642481,-681.76,0.00034661,3]
[312103623,1705626642490,-500.0,0.00034661,3]
[312103624,1705626642499,-500.0,0.00034661,3]
[312103625,1705626642508,-1629.4,0.00034661,3]
[312103626,1705626642517,-1590.5,0.00034661,3]
[312103627,1705626642526,-500.0,0.00034661,3]
[312103628,1705626642535,-151.0,0.00034661,2]
[312103629,1705626642543,-151.0,0.00034662,2]
[312103631,1705626642552,-151.0,0.00034662,2]
[312103632,1705626642561,-500.0,0.00034662,3]
[312103633,1705626642569,-500.0,0.00034662,3]
[312103634,1705626642578,-500.0,0.00034662,3]
[312103635,1705626642587,-500.0,0.00034662,3]
[312103636,1705626642596,-500.0,0.00034662,3]
[312103637,1705626642605,-500.0,0.00034662,3]
[312103638,1705626642613,-500.0,0.00034662,3]
[312103639,1705626642623,-500.0,0.00034662,3]
[312103640,1705626642632,-500.0,0.00034662,3]
[312103641,1705626642706,-500.0,0.00034662,3]
[312103642,1705626642717,-500.0,0.00034662,3]
[312103643,1705626642726,-500.0,0.00034662,3]
[312103644,1705626642736,-402.60602696,0.00034662,3]
[312103645,1705626642745,-500.0,0.00034662,3]
[312103646,1705626642755,-500.0,0.00034662,3]
[312103647,1705626642764,-500.0,0.00034662,3]
[312103648,1705626642774,-521.98,0.00034662,3]
[312103649,1705626642785,-430.98156131,0.00034662,3]
[312103650,1705626642794,-500.0,0.00034662,3]
[312103651,1705626642804,-973.69,0.00034662,3]
[312103652,1705626642813,-500.0,0.00034662,3]
[312103653,1705626642822,-500.0,0.00034662,3]
[312103654,1705626642832,-500.0,0.00034662,3]
[312103655,1705626642841,-500.0,0.00034662,3]
[312103656,1705626642850,-500.0,0.00034662,3]
[312103657,1705626642859,-626.98522015,0.00034662,3]
[312103658,1705626642870,-500.0,0.00034662,3]
[312103659,1705626642879,-500.0,0.00034662,3]
[312103660,1705626642888,-500.0,0.00034662,3]
[312103661,1705626642896,-500.0,0.00034662,3]
[312103662,1705626642906,-500.0,0.00034662,3]
[312103663,1705626642915,-500.0,0.00034662,3]
[312103664,1705626642924,-500.0,0.00034662,3]
[312103665,1705626642933,-500.0,0.00034662,14]
[312103666,1705626642942,-500.0,0.00034662,3]
[312103667,1705626642952,-500.0,0.00034662,3]
[312103668,1705626642961,-500.0,0.00034662,3]
[312103669,1705626642970,-500.0,0.00034662,3]
[312103670,1705626642979,-500.0,0.00034662,3]
[312103671,1705626642988,-262.18708362,0.00034662,3]
[312103672,1705626642998,-500.0,0.00034662,3]
[312103673,1705626643006,-500.0,0.00034662,3]
[312103674,1705626643015,-500.0,0.00034662,3]
[312103675,1705626643024,-500.0,0.00034662,3]
[312103676,1705626643033,-500.0,0.00034662,3]
[312103677,1705626643042,-500.0,0.00034662,3]
[312103678,1705626643052,-500.0,0.00034662,3]
[312103679,1705626643061,-500.0,0.00034922,2]
[312103680,1705626643071,-486.88692676,0.00034922,2]
[312103681,1705626643080,-500.0,0.00034922,2]
[312103682,1705626643089,-500.0,0.00034922,2]
[312103683,1705626643098,-500.0,0.00034922,2]
[312103684,1705626643107,-500.0,0.00034922,2]
[312103685,1705626643116,-252.53556486,0.00034922,2]
[312103686,1705626643125,-500.0,0.00034922,2]
[312103687,1705626643134,-488.71412973,0.00034922,2]
[312103688,1705626643143,-494.23711138,0.00034922,2]
[312103689,1705626643152,-8380.49,0.00034923,3]
[312103690,1705626643162,-503.8,0.00034924,3]
[312103691,1705626643172,-9259.13355948,0.00034924,3]
[312103692,1705626643290,-2027.46389279,0.00034924,3]
[312103693,1705626643305,-441.65312714,0.00034924,3]
[312103694,1705626643889,-636.38,0.000341,3]
[312103695,1705626643900,-500.0,0.00034111,3]
[312103696,1705626643909,-500.0,0.00034113,3]
[312103697,1705626643919,-500.0,0.00034113,3]
[312103698,1705626643928,-1255.02922,0.00034385,2]
[312103699,1705626643937,-1255.02922,0.00034388,2]
[312103700,1705626643947,-501.78249333,0.00034651,3]
[312103701,1705626643956,-1255.02922,0.00034659,2]
[312103702,1705626643966,-2017.22942059,0.00034924,3]
[312103703,1705626643975,-500.0,0.00034924,3]
[312103704,1705626643984,-2896.19,0.00034924,3]
[312103705,1705626643994,-2738.53,0.00034924,3]
[312103706,1705626644003,-500.0,0.00034924,3]
[312103707,1705626644013,-711.52,0.00034924,3]
[312103708,1705626644022,-500.0,0.00034924,3]
[312103709,1705626644032,-1079.45,0.00034924,3]
[312103710,1705626644041,-151.0,0.00034924,2]
[312103711,1705626644050,-1255.02922,0.00034924,2]
[312103712,1705626644059,-1255.02922,0.00034924,2]
[312103713,1705626644068,-500.0,0.00034925,3]
[312103714,1705626644077,-500.0,0.00034925,3]
[312103715,1705626644146,-500.0,0.00034925,3]
[312103716,1705626644165,-500.0,0.00034925,3]
[312103717,1705626644174,-500.0,0.00034925,3]
[312103718,1705626644184,-500.0,0.00034925,3]
[312103719,1705626644193,-500.0,0.00034925,3]
[312103720,1705626644201,-1770.67,0.00034925,3]
[312103721,1705626644210,-725.2,0.00034925,3]
[312103722,1705626644219,-500.0,0.00034925,3]
[312103723,1705626644228,-1770.68,0.00034925,3]
[312103724,1705626644237,-655.17,0.00034925,3]
[312103725,1705626644246,-907.59,0.00034925,3]
[312103726,1705626644255,-652.64,0.00034925,3]
[312103727,1705626644265,-3675.51,0.00034925,3]
[312103728,1705626644274,-3838.84,0.00034925,3]
[312103729,1705626644283,-500.0,0.00034925,3]
[312103730,1705626644293,-531.34,0.00034925,3]
[312103731,1705626644302,-1226.1,0.00034925,3]
[312103732,1705626644311,-500.0,0.00034933,3]
[312103733,1705626644320,-500.0,0.00034933,3]
[312103734,1705626644330,-500.0,0.00034933,3]
[312103735,1705626644339,-500.0,0.00034933,3]
[312103736,1705626644348,-571.23,0.00034933,3]
[312103737,1705626644357,-500.0,0.00034933,3]
[312103738,1705626644367,-324.19753497,0.00034933,3]
[312103739,1705626644375,-500.0,0.00034933,3]
[312103740,1705626644384,-500.0,0.00034933,3]
[312103741,1705626644393,-1688.92,0.00034933,3]
[312103742,1705626644402,-500.0,0.00034933,3]
[312103743,1705626644411,-1530.76,0.00034933,3]
[312103744,1705626644420,-500.0,0.00034933,3]
[312103745,1705626644430,-500.0,0.00034933,3]
[312103746,1705626644440,-500.0,0.00034933,3]
[312103747,1705626644449,-150.0,0.00034933,3]
[312103748,1705626644458,-500.0,0.00034933,3]
[312103749,1705626644467,-500.0,0.00034933,3]
[312103750,1705626644476,-500.0,0.00034933,3]
[312103751,1705626644485,-500.0,0.00034933,3]
[312103752,1705626644494,-151.0,0.00034934,2]
[312103753,1705626644502,-1195.47,0.00034934,3]
[312103754,1705626644511,-1388.6,0.00034934,3]
[312103755,1705626644520,-500.0,0.00034934,3]
[312103756,1705626644529,-500.0,0.00034934,3]
[312103757,1705626644538,-724.06,0.00034934,3]
[312103758,1705626644547,-1613.87,0.00034934,3]
[312103759,1705626644556,-3166.15,0.00034934,3]
[312103760,1705626644566,-596.55,0.00034934,3]
[312103761,1705626644574,-539.38432763,0.00034935,3]
[312103762,1705626644583,-1125.7,0.00034935,3]
[312103763,1705626644592,-500.0,0.00034935,3]
[312103764,1705626644601,-500.0,0.00034935,3]
[312103765,1705626644610,-500.0,0.00034935,3]
[312103766,1705626644619,-500.0,0.00034935,3]
[312103767,1705626644628,-681.76,0.00034935,3]
[312103768,1705626644637,-500.0,0.00034935,3]
[312103769,1705626644646,-500.0,0.00034935,3]
[312103770,1705626644655,-1629.4,0.00034935,3]
[312103771,1705626644665,-1590.5,0.00034935,3]
[312103772,1705626644674,-507.50239065,0.00034935,3]
[312103773,1705626644683,-151.0,0.00034935,2]
[312103774,1705626644694,-1255.02922,0.00034935,2]
[312103775,1705626644704,-1255.02922,0.00034935,2]
[312103776,1705626644713,-151.0,0.00034936,2]
[312103777,1705626644722,-151.0,0.00034936,2]
[312103778,1705626644731,-500.0,0.00034936,3]
[312103779,1705626644741,-500.0,0.00034936,3]
[312103780,1705626644750,-500.0,0.00034936,3]
[312103781,1705626644759,-500.0,0.00034936,3]
[312103782,1705626644768,-500.0,0.00034936,3]
[312103783,1705626644777,-500.0,0.00034936,3]
[312103784,1705626644787,-500.0,0.00034936,3]
[312103785,1705626644797,-500.0,0.00034936,3]
[312103786,1705626644806,-521.98,0.00034936,3]
[312103787,1705626644816,-973.69,0.00034936,3]
[312103788,1705626644827,-500.0,0.00034936,3]
[312103789,1705626644842,-353.18630385,0.00034936,3]
[312103790,1705626644857,-237.95192072,0.00034936,3]
[312103791,1705626644870,-500.0,0.00034936,3]
[312103792,1705626644882,-500.0,0.00034936,3]
[312103793,1705626644896,-500.0,0.00034936,3]
[312103794,1705626644910,-500.0,0.00034936,3]
[312103795,1705626644925,-500.0,0.00034936,3]
[312103796,1705626644938,-500.0,0.00034936,3]
[312103797,1705626644951,-422.95451956,0.00034936,3]
[312103798,1705626644964,-500.0,0.00034936,14]
[312103799,1705626644977,-500.0,0.00034936,3]
[312103800,1705626644989,-500.0,0.00034936,3]
[312103801,1705626645002,-500.0,0.00034936,3]
[312103802,1705626645016,-500.0,0.00034936,3]
[312103803,1705626645030,-500.0,0.00034936,3]
[312103804,1705626645042,-500.0,0.00034936,3]
[312103805,1705626645055,-512.57906049,0.00034936,3]
[312103806,1705626645069,-500.0,0.00034936,3]
[312103807,1705626645084,-457.37167169,0.00034936,3]
[312103808,1705626645095,-500.0,0.00034936,3]
[312103809,1705626645108,-500.0,0.00034936,3]
[312103810,1705626645122,-500.0,0.00034936,3]
[312103811,1705626645136,-333.00867696,0.00035,4]
[312103812,1705626645150,-591.69239792,0.00035,2]
[312103813,1705626645165,-2084.34070549,0.00035,4]
[312103814,1705626645180,-3119.34141957,0.00035,18]
[312103815,1705626645192,-154.09075105,0.00035127,7]
[312103816,1705626645202,-155.74785361,0.00035147,2]
[312103817,1705626645214,-8380.49,0.00035197,3]
[312103818,1705626645227,-13745.48,0.00035198,3]
[312103820,1705626645238,-500.0,0.00035198,3]
[312103821,1705626645251,-2896.19,0.00035198,3]
[312103822,1705626645263,-2738.53,0.00035198,3]
[312103823,1705626645273,-500.0,0.00035198,3]
[312103824,1705626645284,-711.52,0.00035198,3]
[312103825,1705626645295,-500.0,0.00035198,3]
[312103826,1705626645306,-1079.45,0.00035198,3]
[312103827,1705626645318,-151.0,0.00035199,2]
[312103828,1705626645330,-1255.02922,0.00035199,2]
[312103829,1705626645341,-1255.02922,0.00035199,2]
[312103830,1705626645352,-500.0,0.00035199,3]
[312103831,1705626645363,-500.0,0.00035199,3]
[312103832,1705626645377,-500.0,0.00035199,3]
[312103833,1705626645388,-500.0,0.00035199,3]
[312103834,1705626645399,-500.0,0.00035199,3]
[312103835,1705626645412,-500.0,0.00035199,3]
[312103836,1705626645423,-1770.67,0.00035199,3]
[312103837,1705626645434,-725.2,0.00035199,3]
[312103838,1705626645446,-500.0,0.00035199,3]
[312103839,1705626645457,-1770.68,0.00035199,3]
[312103840,1705626645469,-655.17,0.00035199,3]
[312103842,1705626645480,-907.59,0.00035199,3]
[312103843,1705626645492,-652.64,0.00035199,3]
[312103844,1705626645503,-3675.51,0.00035199,3]
[312103845,1705626645515,-3838.84,0.00035199,3]
[312103846,1705626645525,-531.34,0.00035199,3]
[312103847,1705626645534,-1226.1,0.00035199,3]
[312103848,1705626645543,-235.56,0.000352,30]
[312103849,1705626645552,-500.0,0.00035207,3]
[312103850,1705626645561,-617.55624074,0.00035207,3]
[312103851,1705626645571,-500.0,0.00035207,3]
[312103852,1705626645581,-571.23,0.00035207,3]
[312103853,1705626645590,-500.0,0.00035207,3]
[312103855,1705626645599,-500.0,0.00035207,3]
[312103856,1705626645608,-1688.92,0.00035207,3]
[312103857,1705626645618,-500.0,0.00035207,3]
[312103858,1705626645627,-1530.76,0.00035207,3]
[312103859,1705626645636,-500.0,0.00035207,3]
[312103860,1705626645644,-500.0,0.00035207,3]
[312103861,1705626645654,-500.0,0.00035207,3]
[312103865,1705626645775,-150.0,0.00035207,3]
[312103866,1705626645791,-500.0,0.00035207,3]
[312103867,1705626645801,-500.0,0.00035207,3]
[312103868,1705626645810,-500.0,0.00035207,3]
[312103869,1705626645818,-502.45872022,0.00035207,3]
[312103870,1705626645827,-151.0,0.00035208,2]
[312103872,1705626645836,-1195.47,0.00035208,3]
[312103873,1705626645845,-1388.6,0.00035208,3]
[312103874,1705626645854,-500.0,0.00035208,3]
[312103875,1705626645863,-500.0,0.00035208,3]
[312103876,1705626645873,-724.06,0.00035208,3]
[312103877,1705626645883,-1613.87,0.00035208,3]
[312103878,1705626645893,-1459.99947659,0.00035208,3]
[312103879,1705626645906,-1415.89,0.00035208,3]
[312103880,1705626645918,-290.26052341,0.00035208,3]
[312103881,1705626645928,-596.55,0.00035208,3]
[312103882,1705626645938,-1125.7,0.00035209,3]
[312103883,1705626645948,-500.0,0.00035209,3]
[312103884,1705626645957,-500.0,0.00035209,3]
[312103885,1705626645967,-500.0,0.00035209,3]
[312103886,1705626645976,-681.76,0.00035209,3]
[312103887,1705626645985,-500.0,0.00035209,3]
[312103888,1705626645994,-1629.4,0.00035209,3]
[312103889,1705626646004,-1590.5,0.00035209,3]
[312103890,1705626646014,-151.0,0.00035209,2]
[312103891,1705626646022,-500.0,0.0003521,3]
[312103892,1705626646031,-500.0,0.0003521,3]
[312103893,1705626646040,-500.0,0.0003521,3]
[312103894,1705626646049,-521.98,0.0003521,3]
[312103895,1705626646058,-398.40757807,0.0003521,3]
[312103896,1705626646070,-575.28242193,0.0003521,3]
[312103897,1705626646080,-500.0,0.0003521,3]
[312103898,1705626646089,-501.44952157,0.0003521,3]
[312103899,1705626646098,-500.0,0.0003521,3]
[312103900,1705626646107,-409.77770122,0.0003521,3]
[312103901,1705626646115,-500.0,0.0003521,3]
[312103902,1705626646125,-500.0,0.0003521,3]
[312103903,1705626646134,-500.0,0.0003521,14]
[312103904,1705626646143,-500.0,0.0003521,3]
[312103905,1705626646153,-304.12051806,0.0003521,3]
[312103906,1705626646162,-500.0,0.0003521,3]
[312103907,1705626646171,-500.0,0.0003521,3]
[312103908,1705626646180,-500.0,0.0003521,3]
[312103909,1705626646190,-511.98179124,0.0003521,3]
[312103910,1705626646199,-503.44599568,0.0003521,3]
[312103911,1705626646208,-506.65944481,0.0003521,3]
[312103912,1705626646217,-151.0,0.00035406,4]
[312103913,1705626646226,-8380.49,0.00035471,3]
[312103914,1705626646235,-13070.66657428,0.00035472,3]
[312103924,1705626661453,410.41281499,0.00030137,4]
[312103927,1705626681442,477.5694703,0.00030137,4]
[312104014,1705627536103,-815.53530631,0.00030119,4]
[312104015,1705627536126,-319.80242304,0.00030119,4]
[312104016,1705627536146,-330.54422927,0.0003012,4]
[312104017,1705627536167,-174.643549,0.00030137,2]
[312104018,1705627536189,-7.94462213,0.00030137,3]
[312104026,1705627634099,-275.06714219,0.00030137,3]
[312104027,1705627634119,-168.667942,0.0003156,2]
[312104028,1705627634138,-650.89335401,0.00032,4]
[312104029,1705627634158,-156.73970066,0.00032293,7]
[312104030,1705627634179,-154.09075106,0.00032437,7]
[312104031,1705627634198,-351.53561206,0.00032458,2]
[312104035,1705627647097,-154.09075106,0.00030216,7]
[312104036,1705627647120,-921.91519649,0.00032458,2]
[312104037,1705627647142,-400.65024859,0.00032463,2]
[312104038,1705627647161,-557.7249272,0.00033099,2]
[312104039,1705627647182,-154.09075106,0.00033442,7]
[312104040,1705627647202,-151.2478173,0.00034056,2]
[312104041,1705627647225,-2139.7,0.00034091,3]
[312104042,1705627647246,-1973.76,0.00034091,3]
[312104043,1705627647265,-2360.76163072,0.00034098,4]
[312104059,1705627757085,-168.667942,0.0003131,2]
[312104082,1705627831924,-1402.47,0.0003409,3]
[312104084,1705627831934,-1682.96,0.00034091,3]
[312104086,1705627831944,-1628.1597896,0.00034098,4]
[312104088,1705627831954,-1588.5756211,0.00034098,4]
[312104090,1705627831964,-155.60620634,0.00034098,4]
[312104092,1705627831973,-398.19377489,0.00034098,4]
[312104094,1705627831983,-161.39729239,0.00034098,4]
[312104096,1705627831993,-1778.33168104,0.00034098,4]
[312104098,1705627832003,-425.62034809,0.00034098,2]
[312104100,1705627832013,-270.31306208,0.00034098,4]
[312104102,1705627832023,-178.57838263,0.00034098,4]
[312104105,1705627832033,-301.31181134,0.00034098,4]
[312104106,1705627832043,-1007.32539438,0.00034098,20]
[312104108,1705627832054,-4640.27884439,0.00034098,3]
[312104111,1705627832063,-320.58512304,0.00034098,2]
[312104113,1705627832073,-155.14518389,0.00034098,4]
[312104114,1705627832085,-2995.10791787,0.00034099,4]
[312104117,1705627832095,-164.97224594,0.00034099,4]
[312104119,1705627832104,-8326.11,0.00034099,3]
[312104121,1705627832113,-500.0,0.00034099,2]
[312104123,1705627832123,-500.0,0.000341,3]
[312104125,1705627832132,-500.0,0.000341,3]
[312104126,1705627832142,-500.0,0.000341,3]
[312104128,1705627832152,-500.0,0.000341,3]
[312104131,1705627832163,-500.0,0.000341,3]
[312104133,1705627832172,-597.16,0.000341,3]
[312104135,1705627832181,-312.93679802,0.000341,3]
[312104137,1705627832191,-500.0,0.000341,3]
[312104139,1705627832201,-908.53,0.000341,3]
[312104141,1705627832210,-1696.89,0.000341,3]
[312104143,1705627832220,-245.99330949,0.000341,3]
[312104144,1705627832229,-500.0,0.000341,3]
[312104145,1705627832239,-500.0,0.000341,3]
[312104146,1705627832248,-261.51843576,0.000341,3]
[312104147,1705627832258,-1588.18,0.000341,3]
[312104148,1705627832268,-500.0,0.000341,3]
[312104149,1705627832277,-549.31,0.000341,3]
[312104150,1705627832286,-500.0,0.000341,3]
[312104151,1705627832295,-694.98,0.000341,3]
[312104152,1705627832305,-500.0,0.000341,3]
[312104153,1705627832314,-500.0,0.000341,3]
[312104154,1705627832324,-500.0,0.000341,3]
[312104155,1705627832334,-503.76180675,0.000341,3]
[312104156,1705627832343,-500.0,0.000341,3]
[312104157,1705627832353,-2640.71,0.000341,3]
[312104158,1705627832363,-5267.09042477,0.000341,3]
[312104159,1705627832405,-497.35209618,0.000341,3]
[312104160,1705627832415,-446.60215164,0.000341,3]
[312104161,1705627832444,-5956.04532741,0.000341,3]
[312104162,1705627832453,-1535.68,0.000341,3]
[312104163,1705627832463,-761.73,0.000341,3]
[312104164,1705627832472,-500.0,0.000341,3]
[312104165,1705627832481,-500.0,0.000341,3]
[312104166,1705627832490,-500.0,0.000341,3]
[312104167,1705627832500,-3296.68,0.000341,3]
[312104168,1705627832510,-511.80337568,0.000341,3]
[312104169,1705627832519,-1374.25,0.000341,3]
[312104170,1705627832528,-3246.05,0.000341,3]
[312104171,1705627832537,-500.0,0.000341,3]
[312104172,1705627832547,-1032.61,0.000341,3]
[312104173,1705627832557,-2584.26,0.000341,3]
[312104174,1705627832566,-500.0,0.00034101,3]
[312104175,1705627832575,-500.0,0.00034101,3]
[312104176,1705627832585,-500.0,0.00034101,3]
[312104177,1705627832594,-500.0,0.00034101,3]
[312104178,1705627832603,-627.8606387,0.00034101,3]
[312104179,1705627832613,-500.0,0.00034101,3]
[312104180,1705627832624,-502.45845128,0.00034101,3]
[312104181,1705627832633,-500.0,0.00034101,3]
[312104182,1705627832642,-591.48,0.00034101,3]
[312104183,1705627832653,-512.35,0.00034101,3]
[312104184,1705627832663,-500.0,0.00034101,3]
[312104185,1705627832673,-500.0,0.00034101,3]
[312104186,1705627832682,-502.07568279,0.00034101,3]
[312104187,1705627832691,-500.0,0.00034101,3]
[312104188,1705627832701,-506.55486658,0.00034101,3]
[312104189,1705627832710,-500.0,0.00034101,3]
[312104190,1705627832719,-500.0,0.00034101,3]
[312104191,1705627832728,-557.80656287,0.00034101,3]
[312104192,1705627832738,-500.0,0.00034101,3]
[312104193,1705627832747,-500.0,0.00034101,3]
[312104194,1705627832756,-891.18,0.00034101,3]
[312104195,1705627832765,-500.0,0.00034101,3]
[312104196,1705627832774,-500.0,0.00034101,3]
[312104197,1705627832784,-500.0,0.00034101,3]
[312104198,1705627832793,-370.47436512,0.00034101,3]
[312104199,1705627832802,-545.31632648,0.00034101,3]
[312104200,1705627832811,-500.0,0.00034101,3]
[312104201,1705627832821,-500.0,0.00034101,3]
[312104202,1705627832830,-500.0,0.00034101,3]
[312104203,1705627832839,-500.0,0.00034101,3]
[312104204,1705627832848,-117.41774715,0.00034101,3]
[312104266,1705627838185,-382.58225285,0.00034101,3]
[312104268,1705627838196,-150.0,0.00034101,3]
[312104270,1705627838205,-303.47781915,0.00034101,3]
[312104272,1705627838215,-250.5552302,0.00034101,3]
[312104288,1705627841057,-249.4447698,0.00034101,3]
[312104289,1705627841067,-500.0,0.00034101,3]
[312104290,1705627841078,-500.0,0.00034101,3]
[312104291,1705627841087,-607.69,0.00034101,3]
[312104292,1705627841098,-503.12101781,0.00034101,3]
[312104293,1705627841108,-1439.03,0.00034101,3]
[312104294,1705627841117,-2662.73,0.00034101,3]
[312104295,1705627841128,-500.0,0.00034101,3]
[312104296,1705627841138,-502.09,0.00034101,3]
[312104297,1705627841147,-500.0,0.00034101,3]
[312104298,1705627841157,-430.98156131,0.00034101,3]
[312104299,1705627841167,-500.0,0.00034101,3]
[312104300,1705627841176,-1126.7,0.00034101,3]
[312104301,1705627841185,-500.0,0.00034101,3]
[312104302,1705627841194,-500.0,0.00034101,3]
[312104303,1705627841204,-500.0,0.00034101,3]
[312104304,1705627841213,-1245.48,0.00034101,3]
[312104305,1705627841223,-500.0,0.00034101,3]
[312104306,1705627841232,-500.0,0.00034101,3]
[312104307,1705627841241,-500.0,0.00034101,3]
[312104308,1705627841251,-500.0,0.00034101,3]
[312104309,1705627841260,-500.0,0.00034101,3]
[312104310,1705627841269,-812.13,0.00034101,3]
[312104311,1705627841279,-611.49,0.00034103,3]
[312104312,1705627841287,-576.43480643,0.00034103,3]
[312104313,1705627841297,-500.0,0.00034103,3]
[312104314,1705627841305,-1371.41,0.00034103,3]
[312104315,1705627841314,-1418.2,0.00034103,3]
[312104316,1705627841323,-118.52768787,0.00034103,3]
[312104317,1705627841338,-381.47231213,0.00034103,3]
[312104318,1705627841347,-387.36439512,0.00034103,3]
[312104319,1705627841356,-500.0,0.00034111,3]
[312104320,1705627841365,-500.0,0.00034111,3]
[312104321,1705627841374,-500.0,0.00034111,3]
[312104322,1705627841385,-500.0,0.00034111,3]
[312104323,1705627841394,-500.0,0.00034111,3]
[312104324,1705627841404,-500.0,0.00034111,3]
[312104325,1705627841414,-500.0,0.00034111,3]
[312104326,1705627841423,-186.77148725,0.00034111,3]
[312104327,1705627841432,-500.0,0.00034111,14]
[312104328,1705627841442,-500.0,0.00034111,3]
[312104329,1705627841451,-500.0,0.00034111,3]
[312104330,1705627841460,-500.0,0.00034111,3]
[312104331,1705627841470,-202.47921776,0.00034111,3]
[312104332,1705627841480,-500.0,0.00034111,3]
[312104333,1705627841489,-500.0,0.00034111,3]
[312104334,1705627841498,-500.0,0.00034111,3]
[312104335,1705627841508,-500.0,0.00034111,3]
[312104336,1705627841517,-500.0,0.00034111,3]
[312104337,1705627841526,-500.0,0.00034111,3]
[312104338,1705627841535,-500.0,0.00034111,3]
[312104339,1705627841544,-500.0,0.00034113,3]
[312104340,1705627841554,-500.0,0.00034113,3]
[312104341,1705627841563,-154.09075106,0.0003417,7]
[312104342,1705627841572,-2659.26679846,0.00034253,4]
[312104343,1705627841581,-816.5956065,0.00034253,4]
[312104344,1705627841590,-444.23117602,0.00034287,4]